{"text_format":"3","workbook":"xlsx","n_sheets":2,"sheets":["KEZDÉS","ÉVES MUNKAIDŐ-NYILVÁNTARTÁS"],"not_rendered":{"defined_names":2},"read":"whole","date_system":"1900"}

{"sheet":"KEZDÉS","index":0,"n_rows":8,"n_cols":2,"rows_kept":8}
[null,"A SABLON ISMERTETÉSE"]
[null,"Ezen az alkalmazotti jelenléti ív nyomon követheti a napi, heti, havi és éves munkaórákat."]
[null,"Megadhatja az alapvető információkat, például az alkalmazott neve, a vezető nevét, valamint az e-mail-címet és a telefonszámot. "]
[null,"Minden egyes hónap táblázatában megadhatja a munkaórák számát. Minden egyes hét minden egyes napjához külön oszlopban jegyezheti fel a rendes munkaidő és a túlóra óraszámát. "]
[null,"A munkaórák teljes számát, a rendes munkaidőt és a túlórák számát a sablon automatikusan kiszámítja. "]
[null,"Megjegyzések:"]
[null,"Az ÉVES MUNKAIDŐ-NYILVÁNTARTÁS munkalap A oszlopában további útmutatást olvashat. Ez a szöveg szándékosan van elrejtve. Ha törölni szeretné a szöveget, jelölje ki az A oszlopot, majd nyomja le a DELETE billentyűt. Ha láthatóvá szeretné tenni a szöveget, jelölje ki az A oszlopot, majd módosítsa a betűszínt. "]
[null,"Ha többet szeretne megtudni a táblázatokról, nyomja le a SHIFT+F10 billentyűkombinációt egy táblázaton belül, válassza a TÁBLÁZAT parancsot, majd a HELYETTESÍTŐ SZÖVEG elemet."]

{"sheet":"ÉVES MUNKAIDŐ-NYILVÁNTARTÁS","index":1,"n_rows":132,"n_cols":15,"rows_kept":132,"merged":[[0,1,0,2],[0,4,0,14],[10,6,10,7],[21,6,21,7],[32,6,32,7],[33,4,33,14],[43,6,43,7],[54,6,54,7],[65,6,65,7],[66,4,66,14],[76,6,76,7],[87,6,87,7],[98,6,98,7],[99,4,99,14],[109,6,109,7],[120,6,120,7],[131,6,131,7]]}
["Ezen a munkalapon egy napi, heti, havi vagy éves alkalmazotti munkaidő-nyilvántartást készíthet. \nEnnek az oszlopnak a celláiban a munkafüzet használatát megkönnyítő útmutatás olvasható. Első lépésként nyomja le a Le nyílbillentyűt.\nA jobbra lévő cellában szerepel a munkalap címe, az E1 cellában pedig az első negyedévet jelző Január, február, március címsor.","ALKALMAZOTT \nJELENLÉTI ÍV",null,null,"Január, február, március      Alkalmazott jelenléti ív: Napi, heti, havi, éves"]
["A C2 cellában adhatja meg az alkalmazott neve, az E2 cellával kezdődő Január táblázatban pedig a január rendes munkaórák és túlórák számát.","Alkalmazott neve:",null,null,"Január","1. hét","Túlóra","2. hét","Túlóra  ","3. hét","Túlóra   ","4. hét","Túlóra    ","5. hét","Túlóra     "]
["A C3 cellában adhatja meg a vezető nevét.","Vezető:",null,null,"Hétfő",{"v":8,"d":"8.0"}]
["A C4 cellában adhatja meg az e-mail-címet.","E-mail-cím:",null,null,"Kedd",{"v":8,"d":"8.0"},{"v":2,"d":"2.0"}]
["A C5 cellában adhatja meg a telefonszámot. A következő utasítás az A9 cellában található.","Telefonszám:",null,null,"Szerda"]
[{"$nulls":4},"Csütörtök"]
[{"$nulls":4},"Péntek"]
[{"$nulls":4},"Szombat"]
["A C9 cellában a sablon automatikusan kiszámítja a teljes éves rendes munkaidőt.","Rendes munkaidő:",{"$f":"RendesMunkaidő","v":31},null,"Vasárnap"]
["A C10 cellában a sablon automatikusan kiszámítja a teljes éves túlórát.","Túlóra:",{"$f":"Túlóra","v":4},null,"Teljes heti munkaidő",{"$f":"SUM(F3:F9)","v":{"v":16,"d":"16.0"}},{"v":2,"d":"2.0"},{"v":0,"d":"0.0"},{"v":0,"d":"0.0"},{"v":0,"d":"0.0"},{"v":0,"d":"0.0"},{"v":0,"d":"0.0"},{"v":0,"d":"0.0"},{"v":0,"d":"0.0"},{"v":0,"d":"0.0"}]
["A C11 cellában a sablon automatikusan kiszámítja a teljes éves munkaidőt. Az F11 cellában szerepel a januári rendes munkaórák teljes száma, az I11 cellában pedig a sablon automatikusan kiszámítja a januári túlórák teljes számát. A következő utasítás az A13 cellában található.","Összesen",{"$f":"RendesMunkaidő+Túlóra","v":35},null,{"$f":"TEXT(DATEVALUE(Január[[#Headers],[Január]]&\"  \"&YEAR(TODAY())),\"hhh.\")&\"összesen: Rendes munkaidő\"","v":"jan.összesen: Rendes munkaidő"},{"$f":"SUM(Január[1. hét],Január[2. hét],Január[3. hét],Január[4. hét],Január[5. hét])","v":{"v":16,"d":"16.0"}},{"$f":"TEXT(DATEVALUE(Január[[#Headers],[Január]]&\"  \"&YEAR(TODAY())),\"hhh.\")&\" összesen: Túlóra\"","v":"jan. összesen: Túlóra"},null,{"$f":"SUM(Január[Túlóra],Január[[Túlóra  ]],Január[[Túlóra   ]],Január[[Túlóra    ]],Január[[Túlóra     ]])","v":{"v":2,"d":"2.0"}}]
[]
["Az E13 cellával kezdődő Február táblázatban adhatja meg a február rendes munkaórák és túlórák számát. A következő utasítás az A22 cellában található.",{"$nulls":3},"Február","1. hét","Túlóra","2. hét","Túlóra  ","3. hét","Túlóra   ","4. hét","Túlóra    ","5. hét","Túlóra     "]
[{"$nulls":4},"Hétfő",{"v":8,"d":"8.0"}]
[{"$nulls":4},"Kedd",{"v":7,"d":"7.0"},{"v":2,"d":"2.0"}]
[{"$nulls":4},"Szerda"]
[{"$nulls":4},"Csütörtök"]
[{"$nulls":4},"Péntek"]
[{"$nulls":4},"Szombat"]
[{"$nulls":4},"Vasárnap"]
[{"$nulls":4},"Teljes heti munkaidő",{"$f":"SUM(F14:F20)","v":{"v":15,"d":"15.0"}},{"v":2,"d":"2.0"},{"v":0,"d":"0.0"},{"v":0,"d":"0.0"},{"v":0,"d":"0.0"},{"v":0,"d":"0.0"},{"v":0,"d":"0.0"},{"v":0,"d":"0.0"},{"v":0,"d":"0.0"},{"v":0,"d":"0.0"}]
["Az F22 cellában szerepel a februári rendes munkaórák teljes száma, az I22 cellában pedig a sablon automatikusan kiszámítja a februári túlórák teljes számát. A következő utasítás az A24 cellában található.",{"$nulls":3},{"$f":"TEXT(DATEVALUE(Február[[#Headers],[Február]]&\"  \"&YEAR(TODAY())),\"hhh.\")&\"összesen: Rendes munkaidő\"","v":"febr.összesen: Rendes munkaidő"},{"$f":"SUM(Február[1. hét],Február[2. hét],Február[3. hét],Február[4. hét],Február[5. hét])","v":{"v":15,"d":"15.0"}},{"$f":"TEXT(DATEVALUE(Február[[#Headers],[Február]]&\" \"&YEAR(TODAY())),\"hhh.\")&\" összesen: Túlóra\"","v":"febr. összesen: Túlóra"},null,{"$f":"SUM(Február[Túlóra],Február[[Túlóra  ]],Február[[Túlóra   ]],Február[[Túlóra    ]],Február[[Túlóra     ]])","v":{"v":2,"d":"2.0"}}]
[]
["Az E24 cellával kezdődő Március táblázatban adhatja meg a március rendes munkaórák és túlórák számát. A következő utasítás az A33 cellában található.",{"$nulls":3},"Március","1. hét","Túlóra","2. hét","Túlóra ","3. hét","Túlóra  ","4. hét","Túlóra    ","5. hét","Túlóra     "]
[{"$nulls":4},"Hétfő"]
[{"$nulls":4},"Kedd"]
[{"$nulls":4},"Szerda"]
[{"$nulls":4},"Csütörtök"]
[{"$nulls":4},"Péntek"]
[{"$nulls":4},"Szombat"]
[{"$nulls":4},"Vasárnap"]
[{"$nulls":4},"Teljes heti munkaidő",{"$f":"SUM(F25:F31)","v":{"v":0,"d":"0.0"}},{"v":0,"d":"0.0"},{"v":0,"d":"0.0"},{"v":0,"d":"0.0"},{"v":0,"d":"0.0"},{"v":0,"d":"0.0"},{"v":0,"d":"0.0"},{"v":0,"d":"0.0"},{"v":0,"d":"0.0"},{"v":0,"d":"0.0"}]
["Az F33 cellában szerepel a márciusi rendes munkaórák teljes száma, az I33 cellában pedig a sablon automatikusan kiszámítja a márciusi túlórák teljes számát.",{"$nulls":3},{"$f":"TEXT(DATEVALUE(Március[[#Headers],[Március]]&\" \"&YEAR(TODAY())),\"hhh.\")&\"összesen: Rendes munkaidő\"","v":"márc.összesen: Rendes munkaidő"},{"$f":"SUM(Március[1. hét],Március[2. hét],Március[3. hét],Március[4. hét],Március[5. hét])","v":{"v":0,"d":"0.0"}},{"$f":"TEXT(DATEVALUE(Március[[#Headers],[Március]]&\" \"&YEAR(TODAY())),\"hhh.\")&\" összesen: Túlóra\"","v":"márc. összesen: Túlóra"},null,{"$f":"SUM(Március[Túlóra],Március[[Túlóra ]],Március[[Túlóra  ]],Március[[Túlóra    ]],Március[[Túlóra     ]])","v":{"v":0,"d":"0.0"}}]
["Az E34 cellában szerepel a második negyedévet jelző Április, május, június címsor. ",{"$nulls":3},"Április, május, június      Alkalmazott jelenléti ív: Napi, heti, havi, éves"]
["Az E35 cellával kezdődő Április táblázatban adhatja meg az április rendes munkaórák és túlórák számát. A következő utasítás az A44 cellában található.",{"$nulls":3},"Április","1. hét","Túlóra","2. hét","Túlóra  ","3. hét","Túlóra   ","4. hét","Túlóra    ","5. hét","Túlóra     "]
[{"$nulls":4},"Hétfő"]
[{"$nulls":4},"Kedd"]
[{"$nulls":4},"Szerda"]
[{"$nulls":4},"Csütörtök"]
[{"$nulls":4},"Péntek"]
[{"$nulls":4},"Szombat"]
[{"$nulls":4},"Vasárnap"]
[{"$nulls":4},"Teljes heti munkaidő",{"$f":"SUM(F36:F42)","v":{"v":0,"d":"0.0"}},{"v":0,"d":"0.0"},{"v":0,"d":"0.0"},{"v":0,"d":"0.0"},{"v":0,"d":"0.0"},{"v":0,"d":"0.0"},{"v":0,"d":"0.0"},{"v":0,"d":"0.0"},{"v":0,"d":"0.0"},{"v":0,"d":"0.0"}]
["Az F44 cellában szerepel az áprilisi rendes munkaórák teljes száma, az I44 cellában pedig a sablon automatikusan kiszámítja az áprilisi túlórák teljes számát. A következő utasítás az A46 cellában található.",{"$nulls":3},{"$f":"TEXT(DATEVALUE(Április[[#Headers],[Április]]&\" \"&YEAR(TODAY())),\"hhh.\")&\"összesen: Rendes munkaidő\"","v":"ápr.összesen: Rendes munkaidő"},{"$f":"SUM(Április[1. hét],Április[2. hét],Április[3. hét],Április[4. hét],Április[5. hét])","v":{"v":0,"d":"0.0"}},{"$f":"TEXT(DATEVALUE(Április[[#Headers],[Április]]&\" \"&YEAR(TODAY())),\"hhh.\")&\" összesen: Túlóra\"","v":"ápr. összesen: Túlóra"},null,{"$f":"SUM(Április[Túlóra],Április[[Túlóra  ]],Április[[Túlóra   ]],Április[[Túlóra    ]],Április[[Túlóra     ]])","v":{"v":0,"d":"0.0"}}]
[]
["Az E46 cellával kezdődő Május táblázatban adhatja meg a május rendes munkaórák és túlórák számát. A következő utasítás az A55 cellában található.",{"$nulls":3},"Május","1. hét","Túlóra","2. hét","Túlóra  ","3. hét","Túlóra   ","4. hét","Túlóra    ","5. hét","Túlóra     "]
[{"$nulls":4},"Hétfő"]
[{"$nulls":4},"Kedd"]
[{"$nulls":4},"Szerda"]
[{"$nulls":4},"Csütörtök"]
[{"$nulls":4},"Péntek"]
[{"$nulls":4},"Szombat"]
[{"$nulls":4},"Vasárnap"]
[{"$nulls":4},"Teljes heti munkaidő",{"$f":"SUM(F47:F53)","v":{"v":0,"d":"0.0"}},{"v":0,"d":"0.0"},{"v":0,"d":"0.0"},{"v":0,"d":"0.0"},{"v":0,"d":"0.0"},{"v":0,"d":"0.0"},{"v":0,"d":"0.0"},{"v":0,"d":"0.0"},{"v":0,"d":"0.0"},{"v":0,"d":"0.0"}]
["Az F55 cellában szerepel a májusi rendes munkaórák teljes száma, az I55 cellában pedig a sablon automatikusan kiszámítja a májusi túlórák teljes számát. A következő utasítás az A57 cellában található.",{"$nulls":3},{"$f":"TEXT(DATEVALUE(Május[[#Headers],[Május]]&\" \"&YEAR(TODAY())),\"hhh.\")&\"összesen: Rendes munkaidő\"","v":"máj.összesen: Rendes munkaidő"},{"$f":"SUM(Május[1. hét],Május[2. hét],Május[3. hét],Május[4. hét],Május[5. hét])","v":{"v":0,"d":"0.0"}},{"$f":"TEXT(DATEVALUE(Május[[#Headers],[Május]]&\" \"&YEAR(TODAY())),\"hhh.\")&\" összesen: Túlóra\"","v":"máj. összesen: Túlóra"},null,{"$f":"SUM(Május[Túlóra],Május[[Túlóra  ]],Május[[Túlóra   ]],Május[[Túlóra    ]],Május[[Túlóra     ]])","v":{"v":0,"d":"0.0"}}]
[]
["Az E57 cellával kezdődő Június táblázatban adhatja meg a június rendes munkaórák és túlórák számát. A következő utasítás az A66 cellában található.",{"$nulls":3},"Június","1. hét","Túlóra","2. hét","Túlóra  ","3. hét","Túlóra   ","4. hét","Túlóra    ","5. hét","Túlóra     "]
[{"$nulls":4},"Hétfő"]
[{"$nulls":4},"Kedd"]
[{"$nulls":4},"Szerda"]
[{"$nulls":4},"Csütörtök"]
[{"$nulls":4},"Péntek"]
[{"$nulls":4},"Szombat"]
[{"$nulls":4},"Vasárnap"]
[{"$nulls":4},"Teljes heti munkaidő",{"$f":"SUM(F58:F64)","v":{"v":0,"d":"0.0"}},{"v":0,"d":"0.0"},{"v":0,"d":"0.0"},{"v":0,"d":"0.0"},{"v":0,"d":"0.0"},{"v":0,"d":"0.0"},{"v":0,"d":"0.0"},{"v":0,"d":"0.0"},{"v":0,"d":"0.0"},{"v":0,"d":"0.0"}]
["Az F66 cellában szerepel a júniusi rendes munkaórák teljes száma, az I66 cellában pedig a sablon automatikusan kiszámítja a júniusi túlórák teljes számát.",{"$nulls":3},{"$f":"TEXT(DATEVALUE(Június[[#Headers],[Június]]&\" \"&YEAR(TODAY())),\"hhh.\")&\"összesen: Rendes munkaidő\"","v":"jún.összesen: Rendes munkaidő"},{"$f":"SUM(Június[1. hét],Június[2. hét],Június[3. hét],Június[4. hét],Június[5. hét])","v":{"v":0,"d":"0.0"}},{"$f":"TEXT(DATEVALUE(Június[[#Headers],[Június]]&\" \"&YEAR(TODAY())),\"hhh.\")&\" összesen: Túlóra\"","v":"jún. összesen: Túlóra"},null,{"$f":"SUM(Június[Túlóra],Június[[Túlóra  ]],Június[[Túlóra   ]],Június[[Túlóra    ]],Június[[Túlóra     ]])","v":{"v":0,"d":"0.0"}}]
["Az E67 cellában szerepel a harmadik negyedévet jelző Július, augusztus, szeptember címsor. ",{"$nulls":3},"Július, augusztus, szeptember      Alkalmazott jelenléti ív: Napi, heti, havi, éves"]
["Az E68 cellával kezdődő Július táblázatban adhatja meg a július rendes munkaórák és túlórák számát. A következő utasítás az A77 cellában található.",{"$nulls":3},"Július","1. hét","Túlóra","2. hét","Túlóra ","3. hét","Túlóra  ","4. hét","Túlóra   ","5. hét","Túlóra     "]
[{"$nulls":4},"Hétfő"]
[{"$nulls":4},"Kedd"]
[{"$nulls":4},"Szerda"]
[{"$nulls":4},"Csütörtök"]
[{"$nulls":4},"Péntek"]
[{"$nulls":4},"Szombat"]
[{"$nulls":4},"Vasárnap"]
[{"$nulls":4},"Teljes heti munkaidő",{"$f":"SUM(F69:F75)","v":{"v":0,"d":"0.0"}},{"v":0,"d":"0.0"},{"v":0,"d":"0.0"},{"v":0,"d":"0.0"},{"v":0,"d":"0.0"},{"v":0,"d":"0.0"},{"v":0,"d":"0.0"},{"v":0,"d":"0.0"},{"v":0,"d":"0.0"},{"v":0,"d":"0.0"}]
["Az F77 cellában szerepel a júliusi rendes munkaórák teljes száma, az I77 cellában pedig a sablon automatikusan kiszámítja a júliusi túlórák teljes számát. A következő utasítás az A79 cellában található.",{"$nulls":3},{"$f":"TEXT(DATEVALUE(Július[[#Headers],[Július]]&\" \"&YEAR(TODAY())),\"hhh.\")&\"összesen: Rendes munkaidő\"","v":"júl.összesen: Rendes munkaidő"},{"$f":"SUM(Július[1. hét],Július[2. hét],Július[3. hét],Július[4. hét],Július[5. hét])","v":{"v":0,"d":"0.0"}},{"$f":"TEXT(DATEVALUE(Július[[#Headers],[Július]]&\" \"&YEAR(TODAY())),\"hhh.\")&\" összesen: Túlóra\"","v":"júl. összesen: Túlóra"},null,{"$f":"SUM(Július[Túlóra],Július[[Túlóra ]],Július[[Túlóra  ]],Július[[Túlóra   ]],Július[[Túlóra     ]])","v":{"v":0,"d":"0.0"}}]
[]
["Az E79 cellával kezdődő Augusztus táblázatban adhatja meg az augusztusi rendes munkaórák és túlórák számát. A következő utasítás az A88 cellában található.",{"$nulls":3},"Augusztus","1. hét","Túlóra","2. hét","Túlóra ","3. hét","Túlóra   ","4. hét","Túlóra  ","5. hét","Túlóra    "]
[{"$nulls":4},"Hétfő"]
[{"$nulls":4},"Kedd"]
[{"$nulls":4},"Szerda"]
[{"$nulls":4},"Csütörtök"]
[{"$nulls":4},"Péntek"]
[{"$nulls":4},"Szombat"]
[{"$nulls":4},"Vasárnap"]
[{"$nulls":4},"Teljes heti munkaidő",{"$f":"SUBTOTAL(109,Augusztus[1. hét])","v":{"v":0,"d":"0.0"}},{"$f":"SUBTOTAL(109,Augusztus[Túlóra])","v":{"v":0,"d":"0.0"}},{"$f":"SUBTOTAL(109,Augusztus[2. hét])","v":{"v":0,"d":"0.0"}},{"$f":"SUBTOTAL(109,Augusztus[[Túlóra ]])","v":{"v":0,"d":"0.0"}},{"$f":"SUBTOTAL(109,Augusztus[3. hét])","v":{"v":0,"d":"0.0"}},{"$f":"SUBTOTAL(109,Augusztus[[Túlóra   ]])","v":{"v":0,"d":"0.0"}},{"$f":"SUBTOTAL(109,Augusztus[4. hét])","v":{"v":0,"d":"0.0"}},{"$f":"SUBTOTAL(109,Augusztus[[Túlóra  ]])","v":{"v":0,"d":"0.0"}},{"$f":"SUBTOTAL(109,Augusztus[5. hét])","v":{"v":0,"d":"0.0"}},{"$f":"SUBTOTAL(109,Augusztus[[Túlóra    ]])","v":{"v":0,"d":"0.0"}}]
["Az F88 cellában szerepel az augusztusi rendes munkaórák teljes száma, az I88 cellában pedig a sablon automatikusan kiszámítja az augusztusi túlórák teljes számát. A következő utasítás az A90 cellában található.",{"$nulls":3},{"$f":"TEXT(DATEVALUE(Augusztus[[#Headers],[Augusztus]]&\" \"&YEAR(TODAY())),\"hhh.\")&\"összesen: Rendes munkaidő\"","v":"aug.összesen: Rendes munkaidő"},{"$f":"SUM(Augusztus[1. hét],Augusztus[2. hét],Augusztus[3. hét],Augusztus[4. hét],Augusztus[5. hét])","v":{"v":0,"d":"0.0"}},{"$f":"TEXT(DATEVALUE(Augusztus[[#Headers],[Augusztus]]&\" \"&YEAR(TODAY())),\"hhh.\")&\" összesen: Túlóra\"","v":"aug. összesen: Túlóra"},null,{"$f":"SUM(Augusztus[Túlóra],Augusztus[[Túlóra ]],Augusztus[[Túlóra   ]],Augusztus[[Túlóra  ]],Augusztus[[Túlóra    ]])","v":{"v":0,"d":"0.0"}}]
[]
["Az E90 cellával kezdődő Szeptember táblázatban adhatja meg a szeptemberi rendes munkaórák és túlórák számát. A következő utasítás az A99 cellában található.",{"$nulls":3},"Szeptember","1. hét","Túlóra","2. hét","Túlóra ","3. hét","Túlóra  ","4. hét","Túlóra   ","5. hét","Túlóra    "]
[{"$nulls":4},"Hétfő"]
[{"$nulls":4},"Kedd"]
[{"$nulls":4},"Szerda"]
[{"$nulls":4},"Csütörtök"]
[{"$nulls":4},"Péntek"]
[{"$nulls":4},"Szombat"]
[{"$nulls":4},"Vasárnap"]
[{"$nulls":4},"Teljes heti munkaidő",{"$f":"SUBTOTAL(109,Szeptember[1. hét])","v":{"v":0,"d":"0.0"}},{"$f":"SUBTOTAL(109,Szeptember[Túlóra])","v":{"v":0,"d":"0.0"}},{"$f":"SUBTOTAL(109,Szeptember[2. hét])","v":{"v":0,"d":"0.0"}},{"$f":"SUBTOTAL(109,Szeptember[[Túlóra ]])","v":{"v":0,"d":"0.0"}},{"$f":"SUBTOTAL(109,Szeptember[3. hét])","v":{"v":0,"d":"0.0"}},{"$f":"SUBTOTAL(109,Szeptember[[Túlóra  ]])","v":{"v":0,"d":"0.0"}},{"$f":"SUBTOTAL(109,Szeptember[4. hét])","v":{"v":0,"d":"0.0"}},{"$f":"SUBTOTAL(109,Szeptember[[Túlóra   ]])","v":{"v":0,"d":"0.0"}},{"$f":"SUBTOTAL(109,Szeptember[5. hét])","v":{"v":0,"d":"0.0"}},{"$f":"SUBTOTAL(109,Szeptember[[Túlóra    ]])","v":{"v":0,"d":"0.0"}}]
["Az F99 cellában szerepel a szeptemberi rendes munkaórák teljes száma, az I99 cellában pedig a sablon automatikusan kiszámítja a szeptemberi túlórák teljes számát.",{"$nulls":3},{"$f":"TEXT(DATEVALUE(Szeptember[[#Headers],[Szeptember]]&\" \"&YEAR(TODAY())),\"hhh.\")&\"összesen: Rendes munkaidő\"","v":"szept.összesen: Rendes munkaidő"},{"$f":"SUM(Szeptember[1. hét],Szeptember[2. hét],Szeptember[3. hét],Szeptember[4. hét],Szeptember[5. hét])","v":{"v":0,"d":"0.0"}},{"$f":"TEXT(DATEVALUE(Szeptember[[#Headers],[Szeptember]]&\" \"&YEAR(TODAY())),\"hhh.\")&\" összesen: Túlóra\"","v":"szept. összesen: Túlóra"},null,{"$f":"SUM(Szeptember[Túlóra],Szeptember[[Túlóra ]],Szeptember[[Túlóra  ]],Szeptember[[Túlóra   ]],Szeptember[[Túlóra    ]])","v":{"v":0,"d":"0.0"}}]
["Az E100 cellában szerepel a negyedik negyedévet jelző Október, november, december címsor. ",{"$nulls":3},"Október, november, december      Alkalmazott jelenléti ív: Napi, heti, havi, éves"]
["Az E101 cellával kezdődő Október táblázatban adhatja meg az októberi rendes munkaórák és túlórák számát. A következő utasítás az A110 cellában található.",{"$nulls":3},"Október","1. hét","Túlóra","2. hét","Túlóra ","3. hét","Túlóra  ","4. hét","Túlóra   ","5. hét","Túlóra    "]
[{"$nulls":4},"Hétfő"]
[{"$nulls":4},"Kedd"]
[{"$nulls":4},"Szerda"]
[{"$nulls":4},"Csütörtök"]
[{"$nulls":4},"Péntek"]
[{"$nulls":4},"Szombat"]
[{"$nulls":4},"Vasárnap"]
[{"$nulls":4},"Teljes heti munkaidő",{"$f":"SUBTOTAL(109,Október[1. hét])","v":{"v":0,"d":"0.0"}},{"$f":"SUBTOTAL(109,Október[Túlóra])","v":{"v":0,"d":"0.0"}},{"$f":"SUBTOTAL(109,Október[2. hét])","v":{"v":0,"d":"0.0"}},{"$f":"SUBTOTAL(109,Október[[Túlóra ]])","v":{"v":0,"d":"0.0"}},{"$f":"SUBTOTAL(109,Október[3. hét])","v":{"v":0,"d":"0.0"}},{"$f":"SUBTOTAL(109,Október[[Túlóra  ]])","v":{"v":0,"d":"0.0"}},{"$f":"SUBTOTAL(109,Október[4. hét])","v":{"v":0,"d":"0.0"}},{"$f":"SUBTOTAL(109,Október[[Túlóra   ]])","v":{"v":0,"d":"0.0"}},{"$f":"SUBTOTAL(109,Október[5. hét])","v":{"v":0,"d":"0.0"}},{"$f":"SUBTOTAL(109,Október[[Túlóra    ]])","v":{"v":0,"d":"0.0"}}]
["Az F110 cellában szerepel az októberi rendes munkaórák teljes száma, az I110 cellában pedig a sablon automatikusan kiszámítja az októberi túlórák teljes számát. A következő utasítás az A112 cellában található.",{"$nulls":3},{"$f":"TEXT(DATEVALUE(Október[[#Headers],[Október]]&\" \"&YEAR(TODAY())),\"hhh.\")&\"összesen: Rendes munkaidő\"","v":"okt.összesen: Rendes munkaidő"},{"$f":"SUM(Október[1. hét],Október[2. hét],Október[3. hét],Október[4. hét],Október[5. hét])","v":{"v":0,"d":"0.0"}},{"$f":"TEXT(DATEVALUE(Október[[#Headers],[Október]]&\" \"&YEAR(TODAY())),\"hhh.\")&\" összesen: Túlóra\"","v":"okt. összesen: Túlóra"},null,{"$f":"SUM(Október[Túlóra],Október[[Túlóra ]],Október[[Túlóra  ]],Október[[Túlóra   ]],Október[[Túlóra    ]])","v":{"v":0,"d":"0.0"}}]
[]
["Az E112 cellával kezdődő November táblázatban adhatja meg a novemberi rendes munkaórák és túlórák számát. A következő utasítás az A121 cellában található.",{"$nulls":3},"November","1. hét","Túlóra","2. hét","Túlóra ","3. hét","Túlóra  ","4. hét","Túlóra    ","5. hét","Túlóra     "]
[{"$nulls":4},"Hétfő"]
[{"$nulls":4},"Kedd"]
[{"$nulls":4},"Szerda"]
[{"$nulls":4},"Csütörtök"]
[{"$nulls":4},"Péntek"]
[{"$nulls":4},"Szombat"]
[{"$nulls":4},"Vasárnap"]
[{"$nulls":4},"Teljes heti munkaidő",{"$f":"SUBTOTAL(109,November[1. hét])","v":{"v":0,"d":"0.0"}},{"$f":"SUBTOTAL(109,November[Túlóra])","v":{"v":0,"d":"0.0"}},{"$f":"SUBTOTAL(109,November[2. hét])","v":{"v":0,"d":"0.0"}},{"$f":"SUBTOTAL(109,November[[Túlóra ]])","v":{"v":0,"d":"0.0"}},{"$f":"SUBTOTAL(109,November[3. hét])","v":{"v":0,"d":"0.0"}},{"$f":"SUBTOTAL(109,November[[Túlóra  ]])","v":{"v":0,"d":"0.0"}},{"$f":"SUBTOTAL(109,November[4. hét])","v":{"v":0,"d":"0.0"}},{"$f":"SUBTOTAL(109,November[[Túlóra    ]])","v":{"v":0,"d":"0.0"}},{"$f":"SUBTOTAL(109,November[5. hét])","v":{"v":0,"d":"0.0"}},{"$f":"SUBTOTAL(109,November[[Túlóra     ]])","v":{"v":0,"d":"0.0"}}]
["Az F121 cellában szerepel a novemberi rendes munkaórák teljes száma, az I121 cellában pedig a sablon automatikusan kiszámítja a novemberi túlórák teljes számát. A következő utasítás az A123 cellában található.",{"$nulls":3},{"$f":"TEXT(DATEVALUE(November[[#Headers],[November]]&\" \"&YEAR(TODAY())),\"hhh.\")&\"összesen: Rendes munkaidő\"","v":"nov.összesen: Rendes munkaidő"},{"$f":"SUM(November[1. hét],November[2. hét],November[3. hét],November[4. hét],November[5. hét])","v":{"v":0,"d":"0.0"}},{"$f":"TEXT(DATEVALUE(November[[#Headers],[November]]&\" \"&YEAR(TODAY())),\"hhh.\")&\" összesen: Túlóra\"","v":"nov. összesen: Túlóra"},null,{"$f":"SUM(November[Túlóra],November[[Túlóra ]],November[[Túlóra  ]],November[[Túlóra    ]],November[[Túlóra     ]])","v":{"v":0,"d":"0.0"}}]
[]
["Az E123 cellával kezdődő December táblázatban adhatja meg a decemberi rendes munkaórák és túlórák számát. A következő utasítás az A132 cellában található.",{"$nulls":3},"December","1. hét","Túlóra","2. hét","Túlóra ","3. hét","Túlóra  ","4. hét","Túlóra   ","5. hét","Túlóra    "]
[{"$nulls":4},"Hétfő"]
[{"$nulls":4},"Kedd"]
[{"$nulls":4},"Szerda"]
[{"$nulls":4},"Csütörtök"]
[{"$nulls":4},"Péntek"]
[{"$nulls":4},"Szombat"]
[{"$nulls":4},"Vasárnap"]
[{"$nulls":4},"Teljes heti munkaidő",{"$f":"SUBTOTAL(109,December[1. hét])","v":{"v":0,"d":"0.0"}},{"$f":"SUBTOTAL(109,December[Túlóra])","v":{"v":0,"d":"0.0"}},{"$f":"SUBTOTAL(109,December[2. hét])","v":{"v":0,"d":"0.0"}},{"$f":"SUBTOTAL(109,December[[Túlóra ]])","v":{"v":0,"d":"0.0"}},{"$f":"SUBTOTAL(109,December[3. hét])","v":{"v":0,"d":"0.0"}},{"$f":"SUBTOTAL(109,December[[Túlóra  ]])","v":{"v":0,"d":"0.0"}},{"$f":"SUBTOTAL(109,December[4. hét])","v":{"v":0,"d":"0.0"}},{"$f":"SUBTOTAL(109,December[[Túlóra   ]])","v":{"v":0,"d":"0.0"}},{"$f":"SUBTOTAL(109,December[5. hét])","v":{"v":0,"d":"0.0"}},{"$f":"SUBTOTAL(109,December[[Túlóra    ]])","v":{"v":0,"d":"0.0"}}]
["Az F132 cellában szerepel a decemberi rendes munkaórák teljes száma, az I132 cellában pedig a sablon automatikusan kiszámítja a decemberi túlórák teljes számát.",{"$nulls":3},{"$f":"TEXT(DATEVALUE(December[[#Headers],[December]]&\" \"&YEAR(TODAY())),\"hhh.\")&\"összesen: Rendes munkaidő\"","v":"dec.összesen: Rendes munkaidő"},{"$f":"SUM(December[1. hét],December[2. hét],December[3. hét],December[4. hét],December[5. hét])","v":{"v":0,"d":"0.0"}},{"$f":"TEXT(DATEVALUE(December[[#Headers],[December]]&\" \"&YEAR(TODAY())),\"hhh.\")&\" összesen: Túlóra\"","v":"dec. összesen: Túlóra"},null,{"$f":"SUM(G124:G130,I124:I130,K124:K130,M124:M130,O124:O130)","v":{"v":0,"d":"0.0"}}]